bitfinex/quotes_ETHUSD_20220201
["timestamp","ask_amount","ask_price","bid_price","bid_amount"]
[1643727619226,1.17996999,2762.0,2759.8,2.24463763]
[1643727619227,0.99999999,2761.3,2759.8,2.24463763]
[1643727619437,0.99999999,2761.3,2759.8,2.2325521]
[1643727619438,0.86582991,2761.1,2759.8,2.2325521]
[1643727619624,0.907222,2760.0,2759.8,2.2325521]
[1643727619826,0.17997,2759.9,2759.8,2.2325521]
[1643727620230,0.55916843,2759.9,2758.9,0.01208109]
[1643727620425,0.37919843,2759.9,2758.9,0.01208109]
[1643727620625,0.37919843,2759.9,2758.3,1.110019]
[1643727620626,0.428,2759.8,2758.3,1.110019]
[1643727620827,0.17997,2759.7,2758.3,1.110019]
[1643727621041,1.46106843,2759.9,2758.3,3.110019]
[1643727621264,1.03466297,2761.0,2758.3,3.110019]
[1643727621265,0.428,2760.7,2758.7,0.0126226]
[1643727621441,0.428,2760.7,2758.8,0.17998]
[1643727621643,0.02769734,2761.3,2759.4,0.01257025]
[1643727621842,0.02769734,2761.3,2760.0,0.01227788]
[1643727621843,0.01533203,2761.3,2760.0,0.01227788]
[1643727622042,0.17997,2761.2,2759.8,0.7751897]
[1643727622246,0.44081746,2761.4,2759.8,1.3751897]
[1643727622747,0.17997,2762.2,2760.5,0.0129967]
[1643727622943,0.428,2762.1,2761.3,0.70457411]
[1643727623143,1.2355,2763.7,2760.5,0.10343659]
[1643727623144,0.17997,2762.4,2760.5,0.10343659]
[1643727623345,0.17997,2762.1,2760.5,0.10343659]
[1643727623544,0.428,2762.0,2759.5,0.012427]
[1643727623844,0.17997,2761.9,2759.5,1.47062033]
[1643727624045,0.02893872,2762.5,2760.6,0.74079295]
[1643727624046,0.01239704,2761.8,2760.6,0.74079295]
[1643727624242,0.17997,2762.2,2760.6,0.74079295]
[1643727624243,0.43677703,2761.1,2760.6,0.74079295]
[1643727624442,0.428,2762.0,2760.4,0.17998]
[1643727624700,0.01290334,2762.6,2760.4,1.17998]
[1643727624899,0.428,2762.6,2760.5,1.96273907]
[1643727625099,0.428,2762.6,2760.6,0.01259587]
[1643727625100,0.1926579,2762.5,2760.6,0.01259587]
[1643727625304,0.1926579,2762.5,2761.5,0.90888828]
[1643727625501,3.63819997,2763.0,2761.5,1.20888828]
[1643727625502,0.74616997,2763.0,2761.5,1.20888828]
[1643727625699,0.01269788,2762.9,2761.5,1.20888828]
[1643727625903,0.19266788,2762.9,2761.5,1.50888828]
[1643727626105,0.01269788,2762.9,2761.5,1.50888828]
[1643727626306,0.01269788,2762.9,2762.5,0.78700124]
[1643727626506,0.01269788,2762.9,2761.5,4.87564232]
[1643727626507,0.40189259,2762.8,2761.8,1.29105876]
[1643727626705,0.17997,2763.8,2761.9,3.07242116]
[1643727626904,0.17997,2763.8,2762.0,0.17998]
[1643727627104,0.17997,2763.8,2762.0,1.0]
[1643727627304,0.17997,2763.8,2762.0,0.6]
[1643727627506,0.428,2763.7,2762.1,2.0]
[1643727627720,0.15070883,2764.0,2763.2,0.38929598]
[1643727627721,0.01250887,2764.0,2763.2,0.38929598]
[1643727627912,0.0124399,2764.7,2763.2,0.38929598]
[1643727628105,1.42717588,2766.0,2763.2,0.38929598]
[1643727628106,0.17997,2765.7,2763.4,0.01270229]
[1643727628307,0.19250044,2765.7,2763.4,0.01270229]
[1643727628546,0.70439993,2765.6,2763.3,1.3]
[1643727628746,0.01271955,2764.8,2763.3,0.84616564]
[1643727628945,0.60797,2764.7,2763.3,0.84616564]
[1643727629148,0.428,2764.7,2763.3,0.84616564]
[1643727629347,0.27639993,2765.6,2763.3,0.84616564]
[1643727629348,0.34898199,2764.1,2763.5,0.01297477]
[1643727629547,0.17997,2764.2,2763.1,1.80867]
[1643727629750,0.17997,2764.2,2761.6,0.17998]
[1643727629947,0.01227543,2763.6,2761.6,1.08492]
[1643727630146,0.60797,2763.5,2761.6,0.90494]
[1643727630346,0.60797,2763.5,2761.4,1.45819333]
[1643727630548,0.60797,2763.5,2761.2,1.2129]
[1643727630549,0.4382786,2762.9,2761.2,1.2129]
[1643727630746,2.0,2762.8,2761.3,0.01237522]
[1643727630947,1.03325984,2762.9,2760.7,0.17998]
[1643727630948,0.60797,2762.7,2760.7,0.90508]
[1643727631148,0.428,2762.6,2760.7,0.90508]
[1643727631450,0.01207681,2763.3,2760.7,0.90508]
[1643727631451,0.428,2763.6,2761.9,0.01253595]
[1643727631649,0.17997,2763.7,2761.9,0.01253595]
[1643727632048,0.01270861,2763.3,2761.5,2.0]
[1643727632289,0.17997,2763.7,2762.9,0.71628636]
[1643727632290,0.37941422,2763.5,2762.9,0.71628636]
[1643727632492,0.37941422,2763.5,2762.1,0.01212446]
[1643727632889,0.31816996,2763.9,2762.1,0.01212446]
[1643727633093,0.13819996,2763.9,2762.2,0.17998]
[1643727633293,0.01281678,2764.8,2762.3,6.7]
[1643727633495,0.17997,2765.2,2763.5,0.01225222]
[1643727633887,0.01279407,2765.7,2763.5,0.01225222]
[1643727633888,0.17997,2765.5,2763.5,0.01225222]
[1643727634089,0.01279407,2765.7,2764.5,0.80994174]
[1643727634291,0.17997,2765.8,2763.6,1.0]
[1643727634292,1.42799999,2765.6,2763.6,1.0]
[1643727634488,0.01211121,2765.4,2763.5,2.0]
[1643727634688,0.01211121,2765.4,2763.5,0.3]
[1643727634689,0.60797,2765.3,2763.5,0.3]
[1643727635090,0.17997,2765.8,2763.9,0.01235233]
[1643727635289,0.17997,2765.8,2765.4,0.82558166]
[1643727635490,0.17997,2765.8,2765.2,0.92725876]
[1643727635693,0.17997,2765.8,2764.2,0.03822716]
[1643727635946,0.17997,2765.8,2765.2,0.3]
[1643727636150,0.17997,2765.8,2764.2,1.45819333]
[1643727636450,0.13819997,2766.0,2764.3,4.0896482]
[1643727636851,0.31816997,2766.0,2764.4,1.03041954]
[1643727637053,0.31816997,2766.0,2764.4,1.3]
[1643727637251,0.31816997,2766.0,2764.8,0.31695978]
[1643727637252,0.35857893,2765.9,2764.8,0.31695978]
[1643727637453,0.31816997,2766.0,2764.8,0.31695978]
[1643727637653,0.13819997,2766.0,2764.8,0.61695978]
[1643727637856,0.2764,2766.6,2764.9,2.0341302]
[1643727638055,0.2764,2766.6,2764.9,1.31234353]
[1643727638256,0.2764,2766.6,2765.0,0.3]
[1643727638257,0.17997,2766.5,2765.0,0.3]
[1643727638457,0.2764,2766.6,2765.6,0.72339571]
[1643727638458,0.28939981,2766.6,2765.6,0.72339571]
[1643727638654,1.5,2766.1,2765.6,1.02339571]
[1643727638854,0.2764,2766.6,2765.7,6.73554785]
[1643727639053,0.2764,2766.6,2765.8,0.012082]
[1643727639255,0.32697443,2766.9,2765.8,1.7153993]
[1643727639454,1.0739,2768.0,2765.8,1.7153993]
[1643727639455,1.0739,2768.0,2766.0,0.71749158]
[1643727639698,1.0739,2768.0,2765.9,2.3]
[1643727639699,1.0739,2768.0,2767.6,0.93636567]
[1643727639896,1.0739,2768.0,2766.8,0.13819997]
[1643727640296,1.25387,2768.0,2766.8,0.13819997]
[1643727640502,1.25387,2768.0,2765.7,0.01272327]
[1643727640503,0.01295967,2767.7,2765.7,0.01272327]
[1643727640699,1.25387,2768.0,2765.2,2.00132139]
[1643727640700,0.01247463,2767.1,2765.2,2.00132139]
[1643727640904,0.73212977,2766.9,2765.4,0.90369]
[1643727641102,0.73212977,2766.9,2764.9,0.00130514]
[1643727641103,0.01263859,2766.5,2764.9,0.00130514]
[1643727641302,0.42618693,2765.0,2763.9,0.39205652]
[1643727641598,0.17997,2765.1,2763.3,0.03178332]
[1643727641797,0.428,2765.0,2763.1,0.15069231]
[1643727641999,2.17997,2764.9,2763.4,0.9044]
[1643727642197,2.17997,2764.9,2763.1,0.15069231]
[1643727642198,0.428,2764.8,2763.1,0.15069231]
[1643727642397,0.41200881,2764.2,2763.1,0.15069231]
[1643727642596,0.84000881,2764.2,2763.1,0.15069231]
[1643727642796,0.17997,2764.6,2763.2,1.80891]
[1643727643000,0.428,2764.5,2764.4,0.82570676]
[1643727643196,0.17997,2765.0,2763.8,0.04517703]
[1643727643458,0.428,2764.9,2763.2,1.80891]
[1643727643640,0.428,2764.9,2763.1,2.85111997]
[1643727643641,0.44405606,2764.4,2763.4,0.40867338]
[1643727643840,0.17997,2764.8,2763.1,2.89735624]
[1643727644041,0.428,2764.9,2764.3,0.94801868]
[1643727644242,0.91582575,2765.3,2764.3,1.8082]
[1643727644243,0.428,2765.2,2764.3,1.8082]
[1643727644440,0.42016956,2765.2,2764.3,1.8082]
[1643727644642,0.17997,2765.1,2764.3,1.8082]
[1643727644849,0.17997,2765.1,2763.1,0.13819997]
[1643727644850,0.428,2765.0,2763.1,0.13819997]
[1643727645042,0.38775506,2764.1,2763.1,0.13819997]
[1643727645241,0.428,2764.0,2762.8,0.01296873]
[1643727645445,0.93607237,2763.6,2762.8,0.01296873]
[1643727645641,0.93607237,2763.6,2762.1,0.03624385]
[1643727645642,0.17997,2763.5,2762.1,0.03624385]
[1643727645847,0.17997,2763.5,2762.1,0.01229308]
[1643727646050,0.428,2763.4,2762.1,0.01229308]
[1643727646248,0.85198726,2763.4,2762.1,0.01229308]
[1643727646444,0.428,2763.4,2762.2,0.90483]
[1643727646845,0.428,2763.4,2762.2,0.94257717]
[1643727647297,0.36421215,2762.7,2762.2,0.90483]
[1643727647497,0.428,2763.4,2762.2,0.90483]
[1643727647699,0.17997,2764.1,2762.2,0.9446628]
[1643727647899,1.32924225,2764.2,2762.7,0.01280915]
[1643727648098,2.0,2764.7,2763.0,0.90445]
[1643727648099,0.428,2764.6,2763.0,0.90445]
[1643727648501,0.34210346,2763.4,2763.0,0.90445]
[1643727648701,0.17997,2764.0,2762.9,0.6]
[1643727648901,0.17997,2764.0,2762.9,1.6]
[1643727649099,0.13819997,2764.4,2763.8,0.9196055]
[1643727649297,0.13819997,2764.4,2763.8,0.3]
[1643727649500,0.13819997,2764.4,2763.2,0.31680214]
[1643727649701,0.01265211,2765.1,2763.0,1.0]
[1643727649702,0.428,2765.0,2763.7,0.01241955]
[1643727649899,0.84327,2765.0,2763.7,0.01241955]
[1643727650102,0.84327,2764.8,2763.4,0.3]
[1643727650298,0.17997,2764.9,2763.4,0.3]
[1643727650299,0.84327,2764.0,2763.4,0.3]
[1643727650499,0.84327,2764.0,2763.2,0.87986124]
[1643727650500,0.84327,2764.0,2763.2,1.17986124]
[1643727650943,0.84327,2764.0,2762.8,1.84278219]
[1643727650944,0.84327,2764.0,2762.8,1.80889]
[1643727651149,1.90415,2764.0,2762.2,0.90469]
[1643727651355,1.90415,2764.0,2762.3,2.0]
[1643727651548,1.90415,2764.0,2762.6,1.0]
[1643727651750,1.90415,2764.0,2762.7,3.45819333]
[1643727651946,1.90415,2764.0,2763.8,0.92188166]
[1643727652349,1.90415,2764.0,2763.8,0.6]
[1643727652550,1.90415,2764.0,2763.1,0.01254207]
[1643727652750,0.17997,2765.1,2763.7,0.01205911]
[1643727652952,1.06088,2765.1,2763.7,0.01205911]
[1643727653349,0.84327,2765.0,2763.7,0.01205911]
[1643727653553,1.06088,2765.1,2763.7,0.01205911]
[1643727653554,0.40893744,2763.8,2763.7,0.01205911]
[1643727653753,2.17997,2764.8,2763.7,0.01205911]
[1643727653957,1.27127,2764.7,2763.1,1.27821333]
[1643727654790,0.31773887,2764.5,2763.8,0.89218842]
[1643727654990,0.31773887,2764.5,2763.8,1.19218842]
[1643727655198,0.31773887,2764.5,2763.8,0.6]
[1643727655391,1.16100887,2764.5,2763.8,0.6]
[1643727655594,1.34097887,2764.5,2762.8,1.80866]
[1643727655795,0.21998595,2763.5,2762.8,1.80866]
[1643727655998,0.21998595,2763.5,2761.9,8.61733]
[1643727655999,1.31398595,2763.5,2762.2,2.19496804]
[1643727656197,1.31398595,2763.5,2761.9,3.61733]
[1643727656198,2.60797,2763.4,2761.8,1.4164133]
[1643727656399,0.79017602,2762.5,2761.8,1.4164133]
[1643727656604,0.44460084,2763.1,2761.8,1.4164133]
[1643727656799,0.728,2763.1,2761.8,0.13819997]
[1643727657200,0.728,2763.1,2761.8,0.15055257]
[1643727657399,0.17997,2763.0,2761.8,0.15055257]
[1643727657603,0.17997,2763.0,2761.2,0.8343342]
[1643727657604,0.95231742,2762.1,2761.2,0.8343342]
[1643727657799,0.17997,2763.0,2761.2,0.8343342]
[1643727657800,0.44395222,2762.9,2761.2,0.8343342]
[1643727658013,0.6829,2762.9,2761.2,0.8343342]
[1643727658202,0.67755549,2762.9,2761.2,0.8343342]
[1643727658463,1.09282549,2762.9,2761.7,0.01275551]
[1643727659275,1.09282549,2762.9,2761.8,1.0]
[1643727659276,0.84327,2762.9,2761.8,1.0]
[1643727659467,0.84327,2762.9,2762.6,0.01221614]
[1643727660070,0.84327,2762.9,2761.8,2.53101397]
[1643727660269,0.84327,2762.9,2761.9,0.17998]
[1643727660472,0.84327,2762.9,2761.8,2.53101397]
[1643727660473,0.01212809,2764.1,2762.0,20.99]
[1643727660672,1.06088,2764.0,2762.4,0.0182]
[1643727660875,1.06088,2764.0,2762.9,0.01292365]
[1643727661073,3.52156,2764.0,2762.9,0.19290365]
[1643727661272,0.01288472,2765.1,2763.8,0.8836575]
[1643727661475,0.17997,2765.4,2763.8,0.8836575]
[1643727661677,0.17997,2765.4,2763.8,0.3]
[1643727661678,1.89578095,2765.3,2763.8,0.3]
[1643727661882,0.99999999,2765.1,2763.6,0.3]
[1643727662072,1.96763569,2765.2,2763.0,1.0]
[1643727662073,2.13534984,2765.0,2763.0,1.0]
[1643727662296,2.13534984,2765.0,2763.1,2.17998]
[1643727662297,1.52737984,2765.0,2763.1,2.17998]
[1643727662497,0.82831496,2765.0,2764.1,0.94421877]
[1643727662696,0.4227629,2764.8,2764.1,0.94421877]
[1643727662895,0.4227629,2764.8,2764.1,0.3]
[1643727663099,0.01208485,2764.6,2763.2,1.00129665]
[1643727663300,0.428,2765.4,2763.3,2.0]
[1643727663502,0.17997,2765.5,2763.3,2.0]
[1643727663503,1.52738257,2765.3,2763.3,2.03074328]
[1643727663699,0.17997,2765.5,2763.4,0.17998]
[1643727663898,0.17997,2765.5,2764.3,0.88262832]
[1643727663899,0.71393472,2765.1,2764.3,0.88262832]
[1643727664103,0.17997,2765.5,2764.3,1.18262832]
[1643727664301,0.17997,2765.5,2764.3,1.48262832]
[1643727664302,0.39925432,2765.4,2764.3,1.48262832]
[1643727664701,0.39925432,2765.4,2764.3,0.6]
[1643727665001,0.39925432,2765.4,2763.7,1.0]
[1643727665002,0.01294768,2765.0,2763.7,1.0]
[1643727665202,0.01294768,2765.0,2763.7,0.3]
[1643727665402,1.52751588,2764.9,2763.7,0.6]
[1643727665607,0.13819997,2765.6,2763.8,2.03988212]
[1643727665806,0.13819997,2765.6,2764.9,0.90154789]
[1643727666070,0.01224265,2767.0,2765.0,1.4164133]
[1643727666269,1.5266346,2766.9,2765.1,21.418]
[1643727666462,1.05909301,2767.7,2765.1,21.418]
[1643727666463,1.52658544,2766.8,2765.7,1.27821333]
[1643727666661,0.380075,2767.0,2765.7,1.45819333]
[1643727666865,0.65957783,2767.5,2766.3,0.82610642]
[1643727667068,1.52634141,2767.4,2766.4,0.17998]
[1643727667263,1.52634141,2767.3,2766.3,1.42610642]
[1643727667463,0.0129848,2767.7,2766.3,2.42610642]
[1643727667663,0.0129848,2767.7,2765.8,1.0]
[1643727667664,0.01295991,2767.1,2765.9,1.0]
[1643727667868,1.52642548,2767.0,2765.0,0.13819997]
[1643727668064,0.01230036,2765.7,2765.0,0.13819997]
[1643727668265,0.01230036,2765.7,2765.1,0.17998]
[1643727668564,0.83069226,2766.6,2765.8,0.82911447]
[1643727668762,0.01264077,2766.6,2765.8,0.82911447]
[1643727669168,2.0,2767.7,2765.8,2.1073278]
[1643727669363,1.52578294,2767.6,2765.9,0.3]
[1643727669575,2.0,2767.8,2765.9,0.3]
[1643727669576,3.52578294,2767.5,2766.0,0.17998]
[1643727669800,3.52578294,2767.5,2765.9,0.3]
[1643727669801,4.0,2767.2,2765.9,0.3]
[1643727670000,1.52578294,2767.1,2765.9,0.3]
[1643727670401,0.01263553,2767.3,2765.9,0.17998]
[1643727670601,0.44989299,2767.1,2766.0,0.44262354]
[1643727670802,0.44989299,2767.1,2766.4,0.7396309]
[1643727671010,0.17997,2767.0,2765.5,0.90341]
[1643727671204,0.17997,2767.0,2765.3,1.27821333]
[1643727671205,0.0125289,2766.7,2765.3,0.3]
[1643727671404,0.0125289,2766.7,2764.7,3.65581333]
[1643727671405,1.70606514,2766.6,2764.2,0.428]
[1643727671609,0.01205012,2766.0,2764.1,1.27821333]
[1643727671805,0.33236824,2764.4,2763.7,0.00129665]
[1643727672303,0.33236824,2764.4,2763.1,2.18243333]
[1643727673309,0.33236824,2764.4,2762.2,0.10362074]
[1643727673310,9.25797,2764.3,2762.2,0.10362074]
[1643727673559,9.25797,2764.3,2762.3,1.64082]
[1643727673560,0.01232019,2763.2,2762.3,1.64082]
[1643727673762,0.01232019,2763.2,2762.3,3.57233]
[1643727673763,1.10622019,2763.2,2762.3,3.57233]
[1643727674062,1.0939,2763.2,2762.3,3.57233]
[1643727674257,1.0939,2763.2,2762.4,0.77716929]
[1643727674462,1.0939,2763.2,2762.6,0.85532]
[1643727674665,1.0939,2763.2,2762.7,1.64059]
[1643727674868,1.0939,2763.2,2762.7,3.57141]
[1643727675065,2.01640774,2764.3,2762.8,0.85524]
[1643727675066,2.0,2764.3,2762.8,0.85524]
[1643727675267,2.0,2764.3,2762.9,3.57115]
[1643727675469,0.17997,2764.2,2762.9,3.57115]
[1643727675666,0.36010466,2763.0,2762.9,3.57115]
[1643727675868,0.36010466,2763.0,2762.9,4.17115]
[1643727676069,0.78010762,2763.3,2762.9,5.17115]
[1643727676268,0.17997,2763.9,2763.0,1.3]
[1643727676470,0.17997,2763.9,2763.2,1.07576]
[1643727676668,0.17997,2763.9,2763.3,1.64023]
[1643727676873,0.19266304,2764.5,2763.4,0.85507]
[1643727677071,0.16096853,2765.1,2763.5,2.71574]
[1643727677072,0.36696172,2763.9,2763.5,2.71574]
[1643727677301,0.17997,2764.7,2763.6,0.85462]
[1643727677302,0.92165132,2764.2,2763.6,0.85462]
[1643727677498,2.45460581,2764.7,2763.7,1.63999]
[1643727677499,2.46464635,2764.7,2763.7,1.63999]
[1643727677697,0.17997,2764.7,2763.7,3.01553]
[1643727677897,2.63832283,2764.7,2763.7,3.87012]
[1643727678096,2.63832283,2764.7,2763.7,4.17012]
[1643727678296,0.428,2764.8,2763.8,1.07549]
[1643727678297,0.39280934,2764.2,2763.8,1.07549]
[1643727678500,0.39280934,2764.2,2763.6,0.85499]
[1643727678700,0.01231617,2763.7,2762.4,0.12067997]
[1643727679297,0.01231617,2763.7,2762.5,1.6407]
[1643727679697,0.42820671,2763.4,2762.7,1.79358201]
[1643727679903,0.42820671,2763.4,2762.7,0.85528]
[1643727680200,0.17997,2764.4,2762.7,0.85528]
[1643727680401,0.19249679,2764.7,2762.8,1.94053]
[1643727680798,0.19249679,2764.7,2762.8,2.94053]
[1643727681049,0.19249679,2764.7,2762.8,3.87128]
[1643727681250,0.3480864,2763.9,2763.1,0.88760398]
[1643727681455,0.17997,2763.8,2763.0,0.8552]
[1643727681651,0.428,2763.7,2763.0,0.8552]
[1643727681853,0.99999999,2763.4,2761.1,0.90496]
[1643727682052,0.99999999,2763.4,2760.5,0.03357947]
[1643727682053,0.01287074,2762.4,2760.5,0.03357947]
[1643727682251,0.00805175,2762.4,2760.6,1.64312698]
[1643727682454,0.00805175,2762.4,2761.5,0.69041999]
[1643727682455,0.35940669,2762.4,2761.5,0.69041999]
[1643727682653,0.35940669,2762.4,2760.8,0.01217039]
[1643727683060,2.17997,2762.3,2760.8,0.01217039]
[1643727683255,2.17997,2762.3,2760.1,0.00129698]
[1643727683256,0.0075568,2761.7,2760.1,0.00129698]
[1643727683455,0.03137823,2761.3,2759.6,0.00129698]
[1643727683655,0.89691632,2760.7,2759.7,0.69820066]
[1643727683853,0.20104784,2761.2,2759.7,0.69820066]
[1643727684054,0.43270489,2761.3,2759.7,0.69820066]
[1643727684055,0.0163582,2761.3,2759.7,0.69820066]
[1643727684256,0.428,2762.0,2760.0,1.81065]
[1643727684257,2.0,2762.0,2760.0,1.81065]
[1643727684456,0.17997,2762.0,2760.0,1.81065]
[1643727684699,0.39130678,2760.2,2760.0,1.81065]
[1643727684900,0.17997,2760.9,2759.6,0.00129698]
[1643727685102,0.17997,2760.9,2759.4,0.12067997]
[1643727685497,0.128,2761.1,2759.4,0.12067997]
[1643727685698,0.6742868,2761.0,2760.0,0.927212]
[1643727685897,0.37893622,2760.2,2759.4,0.12067997]
[1643727686100,0.17997,2760.9,2759.4,0.12067997]
[1643727686702,2.17997,2760.9,2759.4,0.12067997]
[1643727686905,0.84797264,2760.2,2759.4,0.12067997]
[1643727687201,2.18402082,2760.1,2759.4,0.07067997]
[1643727687403,0.84797264,2760.2,2758.6,0.90581]
[1643727687404,0.39699382,2759.5,2758.6,0.90581]
[1643727688003,0.39699382,2759.5,2758.3,6.279019]
[1643727688205,1.16479382,2759.5,2758.6,0.79618677]
[1643727688470,1.16479382,2759.5,2758.3,6.279019]
[1643727688862,0.7678,2759.5,2758.3,6.31532688]
[1643727689061,0.7678,2759.5,2758.5,1.81164]
[1643727689462,0.95091717,2759.4,2758.6,0.03370939]
[1643727689764,0.69441089,2759.5,2758.6,0.3]
[1643727689960,0.69441089,2759.5,2758.5,3.11164]
[1643727689961,0.38506173,2759.0,2758.5,1.81164]
[1643727690562,0.69441089,2759.5,2758.5,1.81164]
[1643727691366,0.69441089,2759.5,2758.6,0.72948822]
[1643727691967,0.69441089,2759.5,2758.5,1.81164]
[1643727692205,2.44416322,2759.4,2758.3,1.110019]
[1643727692401,0.19653704,2759.3,2758.3,1.110019]
[1643727692601,0.19653704,2759.3,2758.3,1.53640089]
[1643727692602,0.428,2759.3,2758.3,1.53640089]
[1643727692909,0.428,2759.3,2758.3,1.110019]
[1643727693106,0.17997,2759.2,2758.3,1.110019]
[1643727693305,0.22997001,2759.2,2758.3,1.966879]
[1643727693605,20.99,2759.0,2758.3,1.966879]
[1643727693912,6.65,2758.1,2756.5,0.90671]
[1643727694105,6.65,2758.1,2757.0,9.838e-05]
[1643727694106,0.69944192,2757.7,2757.0,9.838e-05]
[1643727694308,0.69944192,2757.7,2756.0,3.59283975]
[1643727694309,0.99999999,2757.1,2756.0,3.59283975]
[1643727694505,0.98570493,2756.7,2755.7,0.5]
[1643727694706,2.60797,2757.0,2755.7,0.5]
[1643727694707,0.01239674,2755.8,2755.7,0.5]
[1643727694905,0.60797,2756.0,2755.7,0.5]
[1643727695108,0.428,2756.3,2755.7,0.5]
[1643727696167,0.31957997,2756.2,2755.7,0.5]
[1643727696366,0.31957997,2756.2,2754.9,1.110019]
[1643727696367,5.2,2756.0,2754.9,1.110019]
[1643727696566,0.31957997,2756.2,2754.9,1.110019]
[1643727696567,0.01206151,2755.8,2754.9,1.110019]
[1643727696770,0.428,2755.8,2755.4,0.03725575]
[1643727696967,0.18138,2756.7,2755.4,0.03725575]
[1643727696968,0.428,2756.5,2755.4,0.03725575]
[1643727697167,0.428,2756.5,2755.3,0.04149491]
[1643727697168,0.428,2756.5,2755.5,0.07761381]
[1643727697469,0.33102171,2756.3,2755.5,0.73343507]
[1643727697667,0.428,2756.2,2755.5,0.73343507]
[1643727697869,0.428,2756.1,2755.5,0.73343507]
[1643727698073,0.428,2756.3,2755.7,0.03725575]
[1643727698271,0.56619997,2757.0,2755.8,0.0126667]
[1643727698470,0.60938,2757.0,2755.8,0.0126667]
[1643727698669,0.428,2757.0,2756.2,0.32597884]
[1643727698868,0.428,2757.0,2755.8,0.0126667]
[1643727699072,0.428,2757.0,2755.5,2.0]
[1643727699269,0.428,2757.0,2755.4,1.04084894]
[1643727699270,0.428,2757.0,2755.4,1.64084894]
[1643727699474,0.83756461,2756.7,2755.8,1.81374]
[1643727699719,0.01200109,2757.5,2755.7,1.31871212]
[1643727699720,0.428,2756.6,2755.7,1.31871212]
[1643727699905,0.428,2756.5,2755.9,0.321295]
[1643727700105,0.13819997,2757.6,2755.9,0.321295]
[1643727700106,0.428,2757.1,2755.9,0.321295]
[1643727700309,7e-05,2757.3,2756.0,2.18136]
[1643727700521,0.18138,2758.6,2756.4,1.0]
[1643727700715,0.18138,2758.6,2756.9,0.90645]
[1643727700716,1.61741,2758.5,2756.9,0.90645]
[1643727701023,0.32522311,2758.2,2756.9,0.90645]
[1643727701213,0.18138,2758.1,2757.0,0.3]
[1643727701417,2.19346687,2758.1,2757.0,0.3]
[1643727701613,0.428,2758.0,2757.0,0.3]
[1643727701812,0.428,2758.0,2755.9,1.0]
[1643727701813,0.18138,2757.9,2756.9,0.89810733]
[1643727702014,0.428,2757.9,2756.9,1.19810733]
[1643727702215,2.0,2758.1,2757.0,0.3]
[1643727702516,2.0,2758.1,2757.0,0.33664083]
[1643727703017,1.61741,2758.5,2757.0,0.33664083]
[1643727703018,1.90415,2758.2,2757.6,0.39272542]
[1643727703221,1.90415,2758.2,2757.5,0.3]
[1643727703222,3.52156,2758.2,2757.5,0.3]
[1643727703650,3.52156,2758.2,2757.0,1.3]
[1643727703848,0.01242225,2758.7,2757.1,4.4]
[1643727704048,0.03234522,2760.3,2757.1,4.4]
[1643727704049,0.18138,2759.5,2757.6,0.01207938]
[1643727704249,0.18138,2759.5,2757.6,1.82449938]
[1643727704450,0.18138,2759.5,2757.6,2.42449938]
[1643727704650,0.18138,2759.5,2757.6,2.41242]
[1643727704850,0.01209016,2759.0,2757.6,2.41242]
[1643727705049,0.18138,2758.9,2757.6,1.81242]
[1643727705250,0.18138,2758.9,2758.0,0.43281708]
[1643727705450,0.01209016,2759.0,2758.0,0.43281708]
[1643727705649,0.18138,2759.5,2758.1,0.90619]
[1643727706057,0.18138,2759.5,2758.1,0.94543175]
[1643727706254,0.01251889,2759.4,2758.1,0.90619]
[1643727706453,0.95265333,2758.7,2758.1,0.73729072]
[1643727706653,0.44051889,2759.4,2758.1,0.73729072]
[1643727706654,0.18138,2758.6,2758.1,0.73729072]
[1643727706854,0.18138,2758.6,2757.6,1.81257]
[1643727707208,0.18138,2758.6,2757.6,2.20146711]
[1643727707400,1.45265,2758.6,2757.5,0.13819997]
[1643727707600,1.45265,2758.6,2756.9,0.90659]
[1643727707802,0.80880141,2757.9,2757.3,0.93727287]
[1643727708002,0.18138,2758.0,2757.3,0.93727287]
[1643727708302,0.84327,2757.9,2757.3,0.32278746]
[1643727708504,0.18138,2757.8,2756.9,0.90659]
[1643727709505,1.1179212,2757.8,2757.1,0.77625985]
[1643727709705,1.1179212,2757.8,2756.9,0.90659]
[1643727709911,2.11792119,2757.8,2756.2,0.9068]
[1643727710109,1.56496827,2757.8,2756.2,0.9068]
[1643727710307,2.56496827,2757.8,2756.2,0.9068]
[1643727710506,1.06088,2757.7,2756.2,0.9068]
[1643727710706,0.62714395,2757.6,2756.6,0.70924431]
[1643727710952,0.60938,2757.6,2756.6,1.13730631]
[1643727711657,0.60938,2757.6,2756.6,1.43730631]
[1643727711959,1.40143719,2757.6,2757.1,0.37192859]
[1643727712164,1.40143719,2757.6,2756.6,1.00924431]
[1643727712761,0.60938,2757.6,2756.6,1.30924431]
[1643727712959,0.60938,2757.6,2756.1,1.81364]
[1643727712960,0.99999999,2757.5,2756.1,1.81364]
[1643727713261,0.45835749,2757.4,2756.0,0.22639994]
[1643727713461,0.428,2757.3,2756.0,0.22639994]
[1643727713663,0.18138,2757.4,2756.0,0.22639994]
[1643727713859,0.72178713,2757.2,2756.6,0.75032375]
[1643727714062,0.72178713,2757.2,2756.0,0.22639994]
[1643727714260,0.18138,2757.4,2756.0,0.22639994]
[1643727714462,0.18138,2757.4,2756.9,0.41363744]
[1643727714697,0.18138,2757.4,2756.0,0.22639994]
[1643727714900,0.18138,2757.4,2756.1,0.90693]
[1643727715103,0.18138,2757.4,2756.2,0.03378293]
[1643727715300,0.18138,2757.4,2757.1,0.91548359]
[1643727715500,0.18138,2757.4,2757.1,1.21548359]
[1643727715701,0.18138,2757.4,2757.1,0.3]
[1643727716002,0.18138,2758.0,2757.2,0.41510866]
[1643727716207,0.18138,2758.0,2757.7,0.38488193]
[1643727716405,3.0645,2759.3,2757.7,0.68488193]
[1643727716406,0.18138,2758.9,2757.7,0.68488193]
[1643727716602,0.68489543,2758.7,2758.1,0.90577895]
[1643727716902,0.18138,2758.7,2758.1,1.50577895]
[1643727717103,0.18138,2758.7,2758.1,0.6]
[1643727717403,0.18138,2758.7,2757.3,1.8127]